[Event "*** MasterClass Titled Tuesday Blitz"]
[Site "Chess.com"]
[Date "2017.08.01"]
[Round "1"]
[White "Incognito_Knight"]
[Black "wonderfultime"]
[Result "1-0"]
[WhiteElo "2373"]
[BlackElo "2655"]
[TimeControl "180+2"]
[EndTime "13:10:13 PDT"]
[Termination "Incognito_Knight won by resignation"]

1. e4 {[%clk 0:02:59.9]} 1... c5 {[%clk 0:02:55.1]} 2. Nf3 {[%clk 0:03:00.6]}
2... d6 {[%clk 0:02:54.9]} 3. d4 {[%clk 0:03:02.1]} 3... cxd4 {[%clk 0:02:56.8]}
4. Nxd4 {[%clk 0:03:04]} 4... Nf6 {[%clk 0:02:57.7]} 5. f3 {[%clk 0:03:05]} 5...
Nc6 {[%clk 0:02:57.8]} 6. c4 {[%clk 0:03:05.6]} 6... g6 {[%clk 0:02:50.7]} 7.
Nc3 {[%clk 0:03:06.4]} 7... Bg7 {[%clk 0:02:52.2]} 8. Be3 {[%clk 0:03:07.1]}
8... O-O {[%clk 0:02:54.1]} 9. Qd2 {[%clk 0:03:07.7]} 9... Be6 {[%clk
0:02:55.3]} 10. Be2 {[%clk 0:03:07.5]} 10... Rc8 {[%clk 0:02:52.6]} 11. Nxe6
{[%clk 0:03:04.3]} 11... fxe6 {[%clk 0:02:53.1]} 12. O-O {[%clk 0:03:05.9]}
12... a6 {[%clk 0:02:52.6]} 13. Rac1 {[%clk 0:03:06.1]} 13... Qa5 {[%clk
0:02:47.4]} 14. Rfd1 {[%clk 0:03:05.8]} 14... Nd7 {[%clk 0:02:45.5]} 15. b3
{[%clk 0:03:01.1]} 15... Nc5 {[%clk 0:02:32.6]} 16. Nb1 {[%clk 0:02:46.2]} 16...
Qxd2 {[%clk 0:02:17.2]} 17. Rxd2 {[%clk 0:02:48.1]} 17... Be5 {[%clk 0:02:17.7]}
18. g3 {[%clk 0:02:47.3]} 18... Bg7 {[%clk 0:02:08]} 19. Nc3 {[%clk 0:02:42.8]}
19... Ne5 {[%clk 0:02:06.1]} 20. Kg2 {[%clk 0:02:30.8]} 20... Nc6 {[%clk
0:02:07.2]} 21. Nd1 {[%clk 0:02:31.1]} 21... e5 {[%clk 0:02:04.7]} 22. Nc3
{[%clk 0:02:29.6]} 22... Nd4 {[%clk 0:02:04]} 23. Nd5 {[%clk 0:02:26.8]} 23...
Rf7 {[%clk 0:02:05.3]} 24. Bd1 {[%clk 0:02:22.9]} 24... e6 {[%clk 0:02:05.7]}
25. Nc3 {[%clk 0:02:19.2]} 25... Rcf8 {[%clk 0:02:06.9]} 26. f4 {[%clk
0:02:16.3]} 26... h5 {[%clk 0:01:38.7]} 27. b4 {[%clk 0:02:15.9]} 27... Nd7
{[%clk 0:01:38.9]} 28. Ne2 {[%clk 0:02:17.5]} 28... Nxe2 {[%clk 0:01:37.6]} 29.
Bxe2 {[%clk 0:02:17.6]} 29... exf4 {[%clk 0:01:26.2]} 30. gxf4 {[%clk
0:02:19.5]} 30... Bh6 {[%clk 0:01:20.6]} 31. Rxd6 {[%clk 0:02:20.1]} 31... Bxf4
{[%clk 0:01:21.7]} 32. Bxf4 {[%clk 0:02:03.4]} 32... Rxf4 {[%clk 0:01:23.6]} 33.
Rxd7 {[%clk 0:02:04.8]} 33... Rf2+ {[%clk 0:01:24.3]} 34. Kg3 {[%clk 0:02:05.5]}
34... Rxe2 {[%clk 0:01:25.6]} 35. Rcd1 {[%clk 0:02:02]} 35... Rxe4 {[%clk
0:01:21.2]} 36. R1d3 {[%clk 0:01:50.6]} 36... Rxc4 {[%clk 0:00:37.4]} 37. Rxb7
{[%clk 0:01:51.4]} 37... Rg4+ {[%clk 0:00:38.1]} 38. Kh3 {[%clk 0:01:52.2]}
38... e5 {[%clk 0:00:40]} 39. Rb6 {[%clk 0:01:34.2]} 39... Kg7 {[%clk
0:00:36.5]} 40. Rg3 {[%clk 0:01:27.2]} 40... Rff4 {[%clk 0:00:32.6]} 41. a3
{[%clk 0:01:16.4]} 41... Rxg3+ {[%clk 0:00:23.4]} 42. Kxg3 {[%clk 0:01:17.5]}
42... h4+ {[%clk 0:00:24]} 43. Kg2 {[%clk 0:01:16.8]} 43... e4 {[%clk 0:00:13]}
44. Rxa6 {[%clk 0:01:16.1]} 44... Kf7 {[%clk 0:00:14.5]} 45. Ra5 {[%clk
0:00:56.5]} 45... Kf6 {[%clk 0:00:14.8]} 46. Ra8 {[%clk 0:00:54.2]} 46... Ke5
{[%clk 0:00:14.6]} 47. b5 {[%clk 0:00:51.8]} 47... Rf6 {[%clk 0:00:15.7]} 48. a4
{[%clk 0:00:49.6]} 48... Kd4 {[%clk 0:00:16.9]} 49. a5 {[%clk 0:00:49.7]} 49...
e3 {[%clk 0:00:17]} 50. Re8 {[%clk 0:00:45.9]} 50... Rf5 {[%clk 0:00:07.8]} 51.
a6 {[%clk 0:00:34.2]} 51... Rg5+ {[%clk 0:00:09.1]} 52. Kf3 {[%clk 0:00:33.2]}
52... Rf5+ {[%clk 0:00:10.3]} 53. Ke2 {[%clk 0:00:32.7]} 53... Rf2+ {[%clk
0:00:11.3]} 54. Ke1 {[%clk 0:00:32.8]} 54... Ra2 {[%clk 0:00:13.2]} 55. b6
{[%clk 0:00:25.8]} 55... Kd3 {[%clk 0:00:14.4]} 56. Rd8+ {[%clk 0:00:26.4]}
56... Ke4 {[%clk 0:00:15.7]} 57. b7 {[%clk 0:00:23.9]} 57... Ra1+ {[%clk
0:00:04]} 58. Rd1 {[%clk 0:00:23.3]} 1-0

[Event "*** MasterClass Titled Tuesday Blitz"]
[Site "Chess.com"]
[Date "2017.08.01"]
[Round "1"]
[White "ShimanovAlex"]
[Black "GasconJR"]
[Result "1/2-1/2"]
[WhiteElo "2612"]
[BlackElo "2337"]
[TimeControl "180+2"]
[EndTime "13:10:41 PDT"]
[Termination "Game drawn by agreement"]

1. d4 {[%clk 0:03:01.5]} 1... Nf6 {[%clk 0:03:00.3]} 2. Bf4 {[%clk 0:03:03]}
2... e6 {[%clk 0:02:59.8]} 3. e3 {[%clk 0:03:03.5]} 3... Bd6 {[%clk 0:03:00.1]}
4. Bg3 {[%clk 0:03:03.9]} 4... Ne4 {[%clk 0:02:54.5]} 5. Nd2 {[%clk 0:03:03.8]}
5... Nxg3 {[%clk 0:02:51.9]} 6. hxg3 {[%clk 0:03:05.7]} 6... Be7 {[%clk
0:02:51.8]} 7. Bd3 {[%clk 0:03:06.6]} 7... g6 {[%clk 0:02:51.9]} 8. Ngf3 {[%clk
0:03:06.9]} 8... c5 {[%clk 0:02:50.7]} 9. c3 {[%clk 0:03:07.3]} 9... d5 {[%clk
0:02:51.4]} 10. Ne5 {[%clk 0:03:07.1]} 10... Nc6 {[%clk 0:02:51.8]} 11. f4
{[%clk 0:03:08]} 11... Nxe5 {[%clk 0:02:47.7]} 12. dxe5 {[%clk 0:03:08.4]} 12...
c4 {[%clk 0:02:47.6]} 13. Be2 {[%clk 0:03:03.4]} 13... Qb6 {[%clk 0:02:47.6]}
14. Qc2 {[%clk 0:02:58]} 14... Qxe3 {[%clk 0:02:43.1]} 15. Nf3 {[%clk
0:02:59.6]} 15... Bc5 {[%clk 0:02:41.7]} 16. Rf1 {[%clk 0:02:59.8]} 16... Bd7
{[%clk 0:02:40.2]} 17. Qd2 {[%clk 0:03:00.2]} 17... Qxd2+ {[%clk 0:02:41]} 18.
Kxd2 {[%clk 0:03:01]} 18... Ke7 {[%clk 0:02:37.4]} 19. g4 {[%clk 0:02:59.2]}
19... b5 {[%clk 0:02:37.5]} 20. a3 {[%clk 0:02:59.4]} 20... a5 {[%clk 0:02:38]}
21. Ra2 {[%clk 0:02:51.5]} 21... b4 {[%clk 0:02:38.6]} 22. axb4 {[%clk
0:02:51.8]} 22... axb4 {[%clk 0:02:39.6]} 23. Rfa1 {[%clk 0:02:53.3]} 23...
bxc3+ {[%clk 0:02:30.2]} 24. bxc3 {[%clk 0:02:53.7]} 24... Rxa2+ {[%clk
0:02:31.1]} 25. Rxa2 {[%clk 0:02:54.5]} 25... Rb8 {[%clk 0:02:31.7]} 26. Bd1
{[%clk 0:02:51.6]} 26... Bc6 {[%clk 0:02:23.9]} 27. Bc2 {[%clk 0:02:51.8]} 27...
h6 {[%clk 0:02:21]} 28. Ra1 {[%clk 0:02:50.6]} 28... Rb2 {[%clk 0:02:20.2]} 29.
Kc1 {[%clk 0:02:49.9]} 29... Rb6 {[%clk 0:02:20.5]} 30. Kd2 {[%clk 0:02:50.8]}
30... Rb7 {[%clk 0:01:23]} 31. Ra6 {[%clk 0:02:44.5]} 31... Bd7 {[%clk 0:01:22]}
32. Ra1 {[%clk 0:02:43.6]} 32... Ra7 {[%clk 0:01:22.3]} 33. Rxa7 {[%clk
0:02:12.8]} 33... Bxa7 {[%clk 0:01:22.2]} 34. g5 {[%clk 0:02:12.5]} 34... hxg5
{[%clk 0:01:20.4]} 35. Nxg5 {[%clk 0:02:14.4]} 35... Bf2 {[%clk 0:01:17.6]} 36.
Ke2 {[%clk 0:02:12.1]} 36... Bg3 {[%clk 0:01:18.1]} 37. Nh3 {[%clk 0:02:12.3]}
37... Bc6 {[%clk 0:01:17.7]} 38. Ke3 {[%clk 0:01:58.4]} 38... Be1 {[%clk
0:01:16.6]} 39. Kd4 {[%clk 0:01:59.4]} 39... Kd7 {[%clk 0:01:06.7]} 40. g4
{[%clk 0:01:59.1]} 40... Bh4 {[%clk 0:00:52]} 41. f5 {[%clk 0:01:56.5]} 41...
exf5 {[%clk 0:00:51.7]} 42. gxf5 {[%clk 0:01:58.4]} 42... g5 {[%clk 0:00:52.8]}
43. Ke3 {[%clk 0:01:56.4]} 43... g4 {[%clk 0:00:52.5]} 44. Ng1 {[%clk
0:01:54.1]} 44... Bg5+ {[%clk 0:00:50.9]} 45. Kd4 {[%clk 0:01:48.7]} 45... Bh4
{[%clk 0:00:49.3]} 46. Ke3 {[%clk 0:01:49.1]} 46... Bg5+ {[%clk 0:00:41.1]} 47.
Kd4 {[%clk 0:01:49.9]} 47... Bh4 {[%clk 0:00:30.4]} 48. Ke3 {[%clk 0:01:48.4]}
48... Be1 {[%clk 0:00:31.8]} 49. Kf4 {[%clk 0:00:34.8]} 49... g3 {[%clk
0:00:25.2]} 50. Bd1 {[%clk 0:00:19.4]} 50... Bf2 {[%clk 0:00:24.9]} 51. Nh3
{[%clk 0:00:19.5]} 51... g2 {[%clk 0:00:25.2]} 52. Kg5 {[%clk 0:00:18.4]} 52...
g1=Q+ {[%clk 0:00:25.6]} 53. Nxg1 {[%clk 0:00:19]} 53... Bxg1 {[%clk 0:00:26.8]}
54. Kf6 {[%clk 0:00:20.9]} 54... d4 {[%clk 0:00:28.2]} 55. Kxf7 {[%clk
0:00:20.8]} 55... dxc3 {[%clk 0:00:25.6]} 56. e6+ {[%clk 0:00:21.8]} 56... Kd6
{[%clk 0:00:21.5]} 57. e7 {[%clk 0:00:21.3]} 57... Bd5+ {[%clk 0:00:19.3]} 58.
Kf8 {[%clk 0:00:21.7]} 58... Bc6 {[%clk 0:00:15.7]} 59. f6 {[%clk 0:00:22.9]}
59... Bc5 {[%clk 0:00:15.4]} 60. e8=Q {[%clk 0:00:22.2]} 60... Bxe8 {[%clk
0:00:15.4]} 61. Kxe8 {[%clk 0:00:24.1]} 61... Ke6 {[%clk 0:00:16.8]} 62. f7
{[%clk 0:00:25.6]} 62... Kd5 {[%clk 0:00:16.5]} 63. Bc2 {[%clk 0:00:18.3]} 63...
Kd4 {[%clk 0:00:17.4]} 64. Kd7 {[%clk 0:00:19.2]} 64... Ke3 {[%clk 0:00:18.3]}
65. Kc6 {[%clk 0:00:20.4]} 65... Bf8 {[%clk 0:00:18.6]} 66. Kd5 {[%clk
0:00:21.7]} 66... Kd2 {[%clk 0:00:19.7]} 67. Bh7 {[%clk 0:00:22.6]} 67... c2
{[%clk 0:00:14.6]} 68. Bxc2 {[%clk 0:00:23.2]} 68... Kxc2 {[%clk 0:00:15.8]} 69.
Kxc4 {[%clk 0:00:24.1]} 1/2-1/2

[Event "*** MasterClass Titled Tuesday Blitz"]
[Site "Chess.com"]
[Date "2017.08.01"]
[Round "1"]
[White "nutibara"]
[Black "KNVB"]
[Result "0-1"]
[WhiteElo "2240"]
[BlackElo "2512"]
[TimeControl "180+2"]
[EndTime "13:10:42 PDT"]
[Termination "KNVB won by checkmate"]

1. e4 {[%clk 0:03:01.5]} 1... c5 {[%clk 0:02:45]} 2. Nf3 {[%clk 0:03:01.9]} 2...
e6 {[%clk 0:02:44.7]} 3. d4 {[%clk 0:03:03.4]} 3... cxd4 {[%clk 0:02:45.4]} 4.
Nxd4 {[%clk 0:03:05.3]} 4... Nc6 {[%clk 0:02:47.2]} 5. Nb5 {[%clk 0:03:04.9]}
5... d6 {[%clk 0:02:44.3]} 6. Bf4 {[%clk 0:03:06.2]} 6... e5 {[%clk 0:02:44.2]}
7. Be3 {[%clk 0:03:07.6]} 7... Nf6 {[%clk 0:02:38]} 8. Bg5 {[%clk 0:03:08.3]}
8... a6 {[%clk 0:01:42.7]} 9. Bxf6 {[%clk 0:03:08.5]} 9... gxf6 {[%clk
0:01:38.8]} 10. N5c3 {[%clk 0:03:09.4]} 10... f5 {[%clk 0:01:39.4]} 11. Qh5
{[%clk 0:03:09.9]} 11... Nd4 {[%clk 0:01:35.8]} 12. Bc4 {[%clk 0:03:10.6]} 12...
Qc7 {[%clk 0:01:23.8]} 13. Nd2 {[%clk 0:03:11.3]} 13... b5 {[%clk 0:01:06.8]}
14. Nd5 {[%clk 0:02:51.4]} 14... Qd8 {[%clk 0:01:07.8]} 15. Bd3 {[%clk
0:02:42.5]} 15... Be6 {[%clk 0:01:06.6]} 16. c3 {[%clk 0:02:37.9]} 16... Nc6
{[%clk 0:01:07.1]} 17. O-O {[%clk 0:02:18.1]} 17... Bg7 {[%clk 0:00:56.1]} 18.
a4 {[%clk 0:02:16.1]} 18... bxa4 {[%clk 0:00:18.4]} 19. Rxa4 {[%clk 0:02:14.1]}
19... O-O {[%clk 0:00:20.1]} 20. exf5 {[%clk 0:02:12.1]} 20... Bxd5 {[%clk
0:00:18.6]} 21. f6 {[%clk 0:02:10]} 21... h6 {[%clk 0:00:08.5]} 22. fxg7 {[%clk
0:02:00.1]} 22... Kxg7 {[%clk 0:00:08.3]} 23. Rg4+ {[%clk 0:01:59.2]} 23... Kf6
{[%clk 0:00:09.7]} 24. Qxh6+ {[%clk 0:01:58.6]} 24... Ke7 {[%clk 0:00:11.2]} 25.
Ne4 {[%clk 0:01:55.7]} 25... Be6 {[%clk 0:00:08.4]} 26. Rg7 {[%clk 0:01:49.5]}
26... Kd7 {[%clk 0:00:08.3]} 27. Ng5 {[%clk 0:01:35.7]} 27... Qe7 {[%clk
0:00:03.5]} 28. Nxe6 {[%clk 0:01:04.9]} 28... Qxe6 {[%clk 0:00:05.4]} 29. Qg5
{[%clk 0:01:05.4]} 29... Kc7 {[%clk 0:00:04.6]} 30. Bf5 {[%clk 0:01:05.3]} 30...
Qe7 {[%clk 0:00:06]} 31. Qg4 {[%clk 0:00:54.3]} 31... Qf6 {[%clk 0:00:05.4]} 32.
g3 {[%clk 0:00:53]} 32... Rab8 {[%clk 0:00:06.5]} 33. b4 {[%clk 0:00:53.3]}
33... Rb6 {[%clk 0:00:04]} 34. Ra1 {[%clk 0:00:52.1]} 34... Ne7 {[%clk
0:00:04.6]} 35. Be4 {[%clk 0:00:44.2]} 35... d5 {[%clk 0:00:05.8]} 36. Bg2
{[%clk 0:00:43.5]} 36... Ng6 {[%clk 0:00:05.7]} 37. Rh7 {[%clk 0:00:43]} 37...
Rd8 {[%clk 0:00:07]} 38. Rd1 {[%clk 0:00:38.6]} 38... e4 {[%clk 0:00:07.3]} 39.
h4 {[%clk 0:00:35.6]} 39... Rbd6 {[%clk 0:00:06.3]} 40. Qe2 {[%clk 0:00:22.3]}
40... Ne5 {[%clk 0:00:06.1]} 41. b5 {[%clk 0:00:15.4]} 41... a5 {[%clk
0:00:06.4]} 42. Qe3 {[%clk 0:00:14.1]} 42... Kb7 {[%clk 0:00:06.3]} 43. Qc5
{[%clk 0:00:09.3]} 43... Rc8 {[%clk 0:00:07]} 44. Qd4 {[%clk 0:00:08.4]} 44...
Rc7 {[%clk 0:00:05.4]} 45. Bxe4 {[%clk 0:00:07.7]} 45... Nf3+ {[%clk 0:00:05.3]}
46. Bxf3 {[%clk 0:00:08.2]} 46... Qxf3 {[%clk 0:00:07.2]} 47. b6 {[%clk
0:00:08.5]} 47... Rc4 {[%clk 0:00:06.2]} 48. Qd2 {[%clk 0:00:06.8]} 48... Rd7
{[%clk 0:00:04.4]} 49. Rb1 {[%clk 0:00:06.5]} 49... a4 {[%clk 0:00:05.1]} 50. h5
{[%clk 0:00:05.2]} 50... Qf5 {[%clk 0:00:06.4]} 51. Rh6 {[%clk 0:00:05.7]} 51...
Qxb1+ {[%clk 0:00:07.5]} 52. Kg2 {[%clk 0:00:07.1]} 52... Qe4+ {[%clk
0:00:08.5]} 53. Kh2 {[%clk 0:00:07.5]} 53... Rc6 {[%clk 0:00:09.8]} 54. Rh7
{[%clk 0:00:07.5]} 54... Qxh7 {[%clk 0:00:10.7]} 55. Qd4 {[%clk 0:00:08.1]}
55... Qxh5+ {[%clk 0:00:11.8]} 56. Kg2 {[%clk 0:00:08.6]} 56... Qf5 {[%clk
0:00:12.9]} 57. Qxa4 {[%clk 0:00:09.5]} 57... Qe4+ {[%clk 0:00:14.5]} 58. Qxe4
{[%clk 0:00:10.1]} 58... dxe4 {[%clk 0:00:16.4]} 59. g4 {[%clk 0:00:11.5]} 59...
Rxc3 {[%clk 0:00:17.9]} 60. g5 {[%clk 0:00:12]} 60... Rf3 {[%clk 0:00:19.5]} 61.
g6 {[%clk 0:00:13.9]} 61... fxg6 {[%clk 0:00:20.9]} 62. Kf1 {[%clk 0:00:15.2]}
62... Kxb6 {[%clk 0:00:22.8]} 63. Kg2 {[%clk 0:00:16.4]} 63... g5 {[%clk
0:00:24.5]} 64. Kf1 {[%clk 0:00:17.7]} 64... g4 {[%clk 0:00:26.4]} 65. Kg2
{[%clk 0:00:19.4]} 65... Rd2 {[%clk 0:00:28]} 66. Kg1 {[%clk 0:00:18.7]} 66...
Rfxf2 {[%clk 0:00:29.2]} 67. Kh1 {[%clk 0:00:20.5]} 67... g3 {[%clk 0:00:30.7]}
68. Kg1 {[%clk 0:00:20.4]} 68... e3 {[%clk 0:00:32.6]} 69. Kh1 {[%clk
0:00:21.1]} 69... Kc5 {[%clk 0:00:34.5]} 70. Kg1 {[%clk 0:00:22.2]} 70... Kd4
{[%clk 0:00:36.4]} 71. Kh1 {[%clk 0:00:22.8]} 71... Ke4 {[%clk 0:00:38.3]} 72.
Kg1 {[%clk 0:00:24.1]} 72... Kf3 {[%clk 0:00:40.2]} 73. Kh1 {[%clk 0:00:25.4]}
73... Ke2 {[%clk 0:00:42.1]} 74. Kg1 {[%clk 0:00:26.7]} 74... Ke1 {[%clk
0:00:44]} 75. Kh1 {[%clk 0:00:28]} 75... Rd1 {[%clk 0:00:45.9]} 76. Kg1 {[%clk
0:00:29.2]} 76... Kd2# {[%clk 0:00:47.8]} 0-1

[Event "*** MasterClass Titled Tuesday Blitz"]
[Site "Chess.com"]
[Date "2017.08.01"]
[Round "1"]
[White "BilodeauA"]
[Black "pedromartinez91"]
[Result "1-0"]
[WhiteElo "2610"]
[BlackElo "2314"]
[TimeControl "180+2"]
[EndTime "13:10:45 PDT"]
[Termination "BilodeauA won on time"]

1. e4 {[%clk 0:02:53]} 1... e6 {[%clk 0:03:00.4]} 2. d4 {[%clk 0:02:53.6]} 2...
d5 {[%clk 0:03:01.2]} 3. Nd2 {[%clk 0:02:55.1]} 3... Nf6 {[%clk 0:03:01.8]} 4.
e5 {[%clk 0:02:55.4]} 4... Ne4 {[%clk 0:03:02.9]} 5. Bd3 {[%clk 0:02:51.7]} 5...
Nxd2 {[%clk 0:03:03.4]} 6. Bxd2 {[%clk 0:02:53.6]} 6... c5 {[%clk 0:03:04.5]} 7.
c3 {[%clk 0:02:55]} 7... Qb6 {[%clk 0:03:05.2]} 8. Nf3 {[%clk 0:02:49.9]} 8...
Nc6 {[%clk 0:03:04.5]} 9. O-O {[%clk 0:02:50.8]} 9... h6 {[%clk 0:02:57.9]} 10.
Be3 {[%clk 0:02:44.8]} 10... c4 {[%clk 0:02:55.8]} 11. Bc2 {[%clk 0:02:44.8]}
11... Qxb2 {[%clk 0:02:54.9]} 12. Qd2 {[%clk 0:02:45.6]} 12... Qb6 {[%clk
0:02:49.2]} 13. Rab1 {[%clk 0:02:42.9]} 13... Qc7 {[%clk 0:02:50]} 14. Ne1
{[%clk 0:02:42.8]} 14... g6 {[%clk 0:02:34]} 15. f4 {[%clk 0:02:36.4]} 15... h5
{[%clk 0:02:34.9]} 16. Nf3 {[%clk 0:02:29.5]} 16... Bd7 {[%clk 0:02:33.2]} 17.
Bf2 {[%clk 0:02:30.6]} 17... Ne7 {[%clk 0:02:32.1]} 18. Bh4 {[%clk 0:02:31.2]}
18... Nf5 {[%clk 0:02:32.7]} 19. Bf6 {[%clk 0:02:32.1]} 19... Rg8 {[%clk
0:02:31.3]} 20. h3 {[%clk 0:02:33]} 20... Be7 {[%clk 0:02:26.1]} 21. g4 {[%clk
0:02:28.4]} 21... Bxf6 {[%clk 0:02:21.7]} 22. exf6 {[%clk 0:02:26.3]} 22... Ng3
{[%clk 0:01:45.1]} 23. Rfe1 {[%clk 0:02:19.4]} 23... O-O-O {[%clk 0:01:45.2]}
24. Ne5 {[%clk 0:02:20]} 24... Be8 {[%clk 0:01:37.7]} 25. Qe3 {[%clk 0:02:11.3]}
25... h4 {[%clk 0:01:27.2]} 26. Kh2 {[%clk 0:02:11.2]} 26... Rd6 {[%clk
0:01:20.8]} 27. a4 {[%clk 0:02:10.4]} 27... Rb6 {[%clk 0:01:19.2]} 28. Kg1
{[%clk 0:02:09.8]} 28... Rxb1 {[%clk 0:01:19.5]} 29. Rxb1 {[%clk 0:02:11.7]}
29... Qd8 {[%clk 0:01:17.3]} 30. g5 {[%clk 0:02:03]} 30... Qa5 {[%clk
0:01:17.8]} 31. Rb4 {[%clk 0:02:02.5]} 31... Qc7 {[%clk 0:01:16.1]} 32. Kg2
{[%clk 0:01:55.6]} 32... Rf8 {[%clk 0:01:13.4]} 33. Qc1 {[%clk 0:01:55]} 33...
Nh5 {[%clk 0:01:08.8]} 34. Rb1 {[%clk 0:01:51.5]} 34... Rh8 {[%clk 0:01:08.1]}
35. Bd1 {[%clk 0:01:51.9]} 35... Ng3 {[%clk 0:01:07.7]} 36. Bc2 {[%clk
0:01:51.5]} 36... Ne2 {[%clk 0:01:05.9]} 37. Qd2 {[%clk 0:01:51.5]} 37... Ng3
{[%clk 0:01:06.6]} 38. Kf3 {[%clk 0:01:51.7]} 38... Nh5 {[%clk 0:01:04]} 39. Qc1
{[%clk 0:01:52.3]} 39... Ng3 {[%clk 0:01:04.6]} 40. Qa3 {[%clk 0:01:53.1]} 40...
Ne4 {[%clk 0:00:59.3]} 41. Bxe4 {[%clk 0:01:53.6]} 41... dxe4+ {[%clk
0:01:00.3]} 42. Ke3 {[%clk 0:01:51.9]} 42... Bc6 {[%clk 0:01:00.2]} 43. a5
{[%clk 0:01:52.4]} 43... a6 {[%clk 0:01:00.4]} 44. Qc5 {[%clk 0:01:53.1]} 44...
Be8 {[%clk 0:00:58.5]} 45. Qxc4 {[%clk 0:01:50.6]} 45... Qxc4 {[%clk 0:00:57.2]}
46. Nxc4 {[%clk 0:01:52.5]} 46... Kc7 {[%clk 0:00:53]} 47. Ne5 {[%clk
0:01:51.1]} 47... Rf8 {[%clk 0:00:53.1]} 48. c4 {[%clk 0:01:51.1]} 48... Bc6
{[%clk 0:00:53.6]} 49. Rg1 {[%clk 0:01:47.6]} 49... Ba4 {[%clk 0:00:52.5]} 50.
Rg4 {[%clk 0:01:45.8]} 50... b5 {[%clk 0:00:46.1]} 51. axb6+ {[%clk 0:01:45.1]}
51... Kxb6 {[%clk 0:00:46.4]} 52. Rxh4 {[%clk 0:01:44.5]} 52... a5 {[%clk
0:00:47.4]} 53. Rg4 {[%clk 0:01:45.1]} 53... Be8 {[%clk 0:00:43.1]} 54. Rg1
{[%clk 0:01:45.2]} 54... Rh8 {[%clk 0:00:44.1]} 55. Rh1 {[%clk 0:01:43.5]} 55...
a4 {[%clk 0:00:44.5]} 56. Kxe4 {[%clk 0:01:39.5]} 56... Ka5 {[%clk 0:00:44.9]}
57. Nd3 {[%clk 0:01:38.5]} 57... a3 {[%clk 0:00:45.5]} 58. Ra1 {[%clk
0:01:38.2]} 58... Ka4 {[%clk 0:00:46.4]} 59. d5 {[%clk 0:01:33.1]} 59... exd5+
{[%clk 0:00:44.9]} 60. cxd5 {[%clk 0:01:33.8]} 60... Rxh3 {[%clk 0:00:45.6]} 61.
d6 {[%clk 0:01:27.6]} 61... Kb3 {[%clk 0:00:45.7]} 62. Re1 {[%clk 0:01:18.2]}
62... a2 {[%clk 0:00:38.9]} 63. Nc1+ {[%clk 0:01:16.5]} 63... Kb2 {[%clk
0:00:39.5]} 64. Nxa2 {[%clk 0:01:16.3]} 64... Kxa2 {[%clk 0:00:39.5]} 65. Kd4
{[%clk 0:01:17.6]} 65... Rh8 {[%clk 0:00:13.3]} 66. Re7 {[%clk 0:01:15.8]} 66...
Kb3 {[%clk 0:00:09.4]} 67. d7 {[%clk 0:01:15.3]} 67... Bxd7 {[%clk 0:00:10.5]}
68. Rxd7 {[%clk 0:01:17.2]} 68... Rf8 {[%clk 0:00:11.9]} 69. Rc7 {[%clk
0:01:16.6]} 69... Kb4 {[%clk 0:00:12.7]} 70. Rb7+ {[%clk 0:01:16.4]} 70... Ka5
{[%clk 0:00:13.5]} 71. Kd5 {[%clk 0:01:17.1]} 71... Ka6 {[%clk 0:00:14.7]} 72.
Rd7 {[%clk 0:01:17.4]} 72... Kb6 {[%clk 0:00:15.4]} 73. Kd6 {[%clk 0:01:18.9]}
73... Kb5 {[%clk 0:00:05]} 74. Ke7 {[%clk 0:01:18.8]} 74... Rd8 {[%clk
0:00:06.7]} 75. Rxd8 {[%clk 0:01:19.6]} 1-0